bitfinex/quotes_BTCUSD_20241001
["timestamp","ask_amount","ask_price","bid_price","bid_amount"]
[1727811689531,0.310211,62108.0,62107.0,0.00164]
[1727811689762,0.5448688,62108.0,62107.0,0.00164]
[1727811690038,0.64394405,62108.0,62107.0,0.00164]
[1727811690709,0.97795205,62108.0,62107.0,0.00164]
[1727811690933,0.98995205,62108.0,62107.0,0.00164]
[1727811691154,1.14639883,62108.0,62107.0,0.00164]
[1727811691381,1.17739883,62108.0,62107.0,0.00164]
[1727811691623,0.193246,62097.0,62096.0,0.24221167]
[1727811691824,0.6837118,62097.0,62096.0,0.24221167]
[1727811692045,0.6925645,62097.0,62096.0,0.001642]
[1727811692297,0.87770017,62097.0,62096.0,0.001642]
[1727811692527,1.05160017,62097.0,62096.0,0.001642]
[1727811692970,1.06160017,62097.0,62096.0,0.001642]
[1727811693191,1.41860817,62097.0,62096.0,0.001642]
[1727811693435,1.08460017,62097.0,62096.0,0.001642]
[1727811693678,1.08460017,62097.0,62092.0,0.001642]
[1727811693679,0.208258,62093.0,62092.0,0.001642]
[1727811693908,0.208258,62093.0,62082.0,0.00164]
[1727811693909,0.198286,62084.0,62082.0,0.00164]
[1727811694125,0.89887592,62084.0,62082.0,0.00164]
[1727811694353,0.308289,62083.0,62082.0,0.00164]
[1727811694573,0.4647468,62083.0,62082.0,0.00164]
[1727811694794,0.47359595,62083.0,62082.0,0.00164]
[1727811695037,0.63004273,62083.0,62082.0,0.00164]
[1727811695235,0.63004273,62083.0,62068.0,0.001642]
[1727811695236,0.527319,62076.0,62068.0,0.001642]
[1727811695451,0.7837768,62076.0,62068.0,0.001642]
[1727811695670,0.79258946,62076.0,62068.0,0.001642]
[1727811695890,0.88458946,62076.0,62068.0,0.001642]
[1727811696131,0.64,62069.0,62068.0,0.001642]
[1727811696534,0.64,62069.0,62056.0,0.24056967]
[1727811696535,0.308348,62064.0,62063.0,0.24056967]
[1727811696813,0.8916138,62064.0,62063.0,0.24056967]
[1727811696982,0.8916138,62064.0,62054.0,0.001642]
[1727811696983,0.208376,62055.0,62054.0,0.001642]
[1727811697145,0.4898338,62055.0,62054.0,0.001642]
[1727811697389,0.55778685,62055.0,62054.0,0.001642]
[1727811697976,0.58305092,62055.0,62054.0,0.001642]
[1727811698182,0.59705092,62055.0,62054.0,0.001642]
[1727811698323,0.7394977,62055.0,62054.0,0.001642]
[1727811698541,0.7394977,62055.0,62049.0,0.001642]
[1727811698542,0.833392,62050.0,62049.0,0.001642]
[1727811698768,1.3238578,62050.0,62049.0,0.001642]
[1727811698992,1.34693715,62050.0,62049.0,0.001642]
[1727811700055,1.36093715,62050.0,62049.0,0.001642]
[1727811700323,1.36093715,62050.0,62044.0,0.001642]
[1727811700324,0.310408,62045.0,62044.0,0.001642]
[1727811700549,0.310408,62045.0,62030.0,0.24056967]
[1727811700550,0.298451,62031.0,62030.0,0.24056967]
[1727811700760,0.7889168,62031.0,62030.0,0.24056967]
[1727811700969,0.7889168,62031.0,62003.0,0.387075]
[1727811700970,0.193473,62024.0,62006.0,0.193528]
[1727811701179,0.193482,62021.0,62007.0,0.193524]
[1727811701395,0.193482,62021.0,62008.0,0.24056967]
[1727811701396,0.3499398,62021.0,62008.0,0.24056967]
[1727811702042,0.7839478,62021.0,62008.0,0.24056967]
[1727811702465,0.79246458,62021.0,62008.0,0.24056967]
[1727811703990,0.79946458,62021.0,62008.0,0.24056967]
[1727811704239,0.95991136,62021.0,62008.0,0.24056967]
[1727811705293,0.17597458,62021.0,62008.0,0.62761367]
[1727811705537,0.36545658,62021.0,62015.0,0.1935]
[1727811705759,0.17197458,62021.0,62020.0,0.194306]
[1727811705963,0.18497458,62021.0,62020.0,0.194306]
[1727811706176,0.18497458,62021.0,62020.0,0.000821]
[1727811706383,0.16497458,62021.0,62020.0,0.000821]
[1727811706595,0.293455,62030.0,62024.0,0.179472]
[1727811706811,0.293455,62030.0,62020.0,0.000821]
[1727811706812,0.03127139,62021.0,62020.0,0.194306]
[1727811707049,0.006,62021.0,62020.0,0.194306]
[1727811707270,0.03727078,62021.0,62020.0,0.194306]
[1727811707686,0.02527078,62021.0,62020.0,0.194306]
[1727811708132,0.02827078,62021.0,62020.0,0.194306]
[1727811708372,0.02527078,62021.0,62020.0,0.194306]
[1727811708994,0.02727078,62021.0,62020.0,0.000821]
[1727811709224,0.04611513,62021.0,62020.0,0.000821]
[1727811709475,0.39405493,62021.0,62020.0,0.000821]
[1727811709683,0.39405493,62021.0,62020.0,0.002821]
[1727811710118,0.39605493,62021.0,62020.0,0.002821]
[1727811710569,0.39405493,62021.0,62020.0,0.000821]
[1727811710844,0.41205493,62021.0,62020.0,0.001821]
[1727811711062,0.55225142,62021.0,62020.0,0.000821]
[1727811711297,0.55225142,62021.0,62020.0,0.001821]
[1727811711298,0.66225142,62021.0,62020.0,0.001821]
[1727811711985,0.65425142,62021.0,62020.0,0.001821]
[1727811712478,0.65225142,62021.0,62020.0,0.000821]
[1727811712719,0.66725142,62021.0,62020.0,0.000821]
[1727811712938,0.66925142,62021.0,62020.0,0.001821]
[1727811713165,0.66925142,62021.0,62020.0,0.000821]
[1727811713392,0.67125142,62021.0,62020.0,0.001821]
[1727811713855,0.65925142,62021.0,62020.0,0.000821]
[1727811714072,0.66125142,62021.0,62020.0,0.001821]
[1727811715219,0.66125142,62021.0,62008.0,0.24056967]
[1727811715220,0.1,62019.0,62008.0,0.24056967]
[1727811715434,0.21657293,62021.0,62008.0,0.24056967]
[1727811715435,0.1,62017.0,62008.0,0.24056967]
[1727811715668,0.1564578,62018.0,62008.0,0.24056967]
[1727811715669,0.1564578,62016.0,62014.0,0.193503]
[1727811715938,0.1564578,62016.0,62012.0,0.193509]
[1727811716159,0.1564578,62016.0,62001.0,0.24056967]
[1727811716160,0.193508,62013.0,62007.0,0.193524]
[1727811716388,0.193508,62013.0,62001.0,0.24056967]
[1727811716389,0.1564578,62012.0,62001.0,0.24056967]
[1727811716617,0.1564578,62012.0,62002.0,0.193539]
[1727811716618,0.193525,62008.0,62002.0,0.193539]
[1727811716854,0.1564578,62007.0,62003.0,0.193538]
[1727811717286,0.1564578,62007.0,62004.0,0.193533]
[1727811717492,0.1564578,62007.0,62005.0,0.193531]
[1727811717717,0.1564578,62007.0,62004.0,0.193535]
[1727811717718,0.19689389,62007.0,62004.0,0.193535]
[1727811717937,0.19689389,62007.0,62006.0,0.193529]
[1727811718166,0.02527583,62010.0,62009.0,0.19352]
[1727811718410,0.18173363,62010.0,62009.0,0.19352]
[1727811718873,0.18173363,62010.0,62009.0,0.19252]
[1727811719322,0.02527583,62010.0,62009.0,0.19252]
[1727811719537,0.02627583,62010.0,62009.0,0.36802]
[1727811719773,0.02727583,62010.0,62009.0,0.36802]
[1727811719993,0.02627583,62010.0,62009.0,0.36802]
[1727811720438,0.02727583,62010.0,62009.0,0.702028]
[1727811720675,0.02627583,62010.0,62009.0,0.702028]
[1727811720934,0.02627583,62010.0,62009.0,0.36802]
[1727811721369,0.02627583,62010.0,62009.0,0.702028]
[1727811721585,0.02627583,62010.0,62009.0,0.36802]
[1727811722028,0.02627583,62010.0,62009.0,0.37302]
[1727811722295,0.486874,62036.0,62009.0,0.514508]
[1727811722296,0.1,62036.0,62009.0,0.514508]
[1727811722530,0.24056967,62022.0,62021.0,0.271682]
[1727811722753,0.25690772,62022.0,62021.0,0.271682]
[1727811722990,0.386851,62040.0,62023.0,0.193476]
[1727811723226,0.193443,62034.0,62023.0,0.293376]
[1727811723460,0.002644,62024.0,62023.0,0.293376]
[1727811723677,0.001644,62024.0,62023.0,0.293376]
[1727811724143,0.001644,62024.0,62023.0,0.193476]
[1727811724373,0.001644,62024.0,62014.0,0.0799]
[1727811724374,0.1581018,62024.0,62014.0,0.0799]
[1727811724603,0.20566878,62023.0,62016.0,0.193497]
[1727811724870,0.334008,62020.0,62008.0,0.0799]
[1727811725086,0.1564578,62019.0,62009.0,0.387038]
[1727811725305,0.193496,62017.0,62009.0,0.193518]
[1727811725522,0.1564578,62016.0,62011.0,0.193513]
[1727811725960,0.1564578,62016.0,62008.0,0.387046]
[1727811726241,0.1564578,62016.0,62012.0,0.19351]
[1727811726460,0.1564578,62016.0,62001.0,0.0799]
[1727811726461,0.00961106,62015.0,62010.0,0.38703]
[1727811726674,0.1564578,62014.0,62013.0,0.193506]
[1727811727103,0.16607408,62014.0,62013.0,0.193506]
[1727811728012,0.1564578,62014.0,62013.0,0.193506]
[1727811728218,0.1564578,62014.0,62010.0,0.38703]
[1727811728219,0.293461,62028.0,62023.0,0.193476]
[1727811728389,0.39867147,62024.0,62023.0,0.193476]
[1727811728630,0.1581018,62024.0,62023.0,0.190476]
[1727811729309,0.001644,62024.0,62023.0,0.190476]
[1727811729526,0.002644,62024.0,62023.0,0.190476]
[1727811729748,0.02791368,62024.0,62023.0,0.190476]
[1727811729961,0.001644,62024.0,62023.0,0.191476]
[1727811731508,0.001644,62024.0,62019.0,0.386972]
[1727811731746,0.001644,62024.0,62023.0,0.194476]
[1727811731962,0.001644,62024.0,62023.0,0.193476]
[1727811732189,0.001644,62024.0,62023.0,0.194476]
[1727811732648,0.001644,62024.0,62020.0,0.193485]
[1727811732893,0.1564578,62023.0,62019.0,0.199488]
[1727811733107,0.334008,62020.0,62007.0,0.24056967]
[1727811733343,0.1564578,62019.0,62018.0,0.193492]
[1727811733555,0.501644,62024.0,62023.0,0.195476]
[1727811734429,0.6581018,62024.0,62023.0,0.195476]
[1727811734652,0.6581018,62024.0,62023.0,0.193476]
[1727811735325,0.6581018,62024.0,62021.0,0.193481]
[1727811735547,0.501644,62024.0,62023.0,0.001]
[1727811736944,0.501644,62024.0,62023.0,0.194476]
[1727811737142,0.6581018,62024.0,62023.0,0.001]
[1727811737378,0.8515748,62024.0,62023.0,0.001]
[1727811737837,0.6581018,62024.0,62021.0,0.001]
[1727811738070,0.1564578,62023.0,62021.0,0.194481]
[1727811738298,0.1564578,62023.0,62018.0,0.386983]
[1727811738531,0.1564578,62023.0,62021.0,0.193479]
[1727811738532,0.18172819,62023.0,62021.0,0.193479]
[1727811738997,0.18172819,62023.0,62018.0,0.386983]
[1727811739235,0.18172819,62023.0,62021.0,0.193482]
[1727811739468,0.18172819,62023.0,62021.0,0.002]
[1727811739688,0.1564578,62023.0,62021.0,0.002]
[1727811739907,0.193479,62022.0,62021.0,0.001]
[1727811740140,0.1564578,62023.0,62021.0,0.001]
[1727811740597,0.501644,62024.0,62023.0,0.193476]
[1727811741061,0.501644,62024.0,62023.0,0.527484]
[1727811741755,0.501644,62024.0,62023.0,0.193476]
[1727811742424,0.501644,62024.0,62023.0,0.194476]
[1727811742653,0.501644,62024.0,62023.0,0.193476]
[1727811742886,0.52791107,62024.0,62023.0,0.199476]
[1727811743110,0.52891107,62024.0,62023.0,0.209476]
[1727811743335,0.54527335,62024.0,62023.0,0.209476]
[1727811743590,0.54527335,62024.0,62023.0,0.566484]
[1727811744036,0.54527335,62024.0,62023.0,0.9134418]
[1727811744257,0.54427335,62024.0,62023.0,0.9034418]
[1727811744487,0.31900628,62024.0,62023.0,1.0035418]
[1727811744716,0.31900628,62024.0,62023.0,1.0015418]
[1727811744942,0.31900628,62024.0,62023.0,0.9805418]
[1727811744943,0.301644,62024.0,62023.0,0.9805418]
[1727811745165,0.302644,62024.0,62023.0,0.9905418]
[1727811745412,0.303644,62024.0,62023.0,1.0045418]
[1727811745611,0.301644,62024.0,62023.0,0.9805418]
[1727811745848,0.303644,62024.0,62023.0,1.0085418]
[1727811746068,0.303644,62024.0,62023.0,0.852084]
[1727811746301,0.301644,62024.0,62023.0,0.376576]
[1727811746550,0.301644,62024.0,62023.0,0.390576]
[1727811746776,0.302644,62024.0,62023.0,0.390576]
[1727811747709,0.302644,62024.0,62023.0,0.404576]
[1727811747935,0.301644,62024.0,62023.0,0.390576]
[1727811748399,0.301644,62024.0,62023.0,0.404576]
[1727811748400,0.302644,62024.0,62023.0,0.404576]
[1727811749358,0.302644,62024.0,62023.0,0.761584]
[1727811749589,0.301644,62024.0,62023.0,0.9210418]
[1727811749830,0.24056967,62039.0,62038.0,0.269029]
[1727811750066,0.24056967,62039.0,62038.0,0.603037]
[1727811750291,0.24056967,62039.0,62038.0,0.269029]
[1727811750524,0.24056967,62046.0,62045.0,0.193408]
[1727811750964,0.0165009,62046.0,62045.0,0.193408]
[1727811751423,0.24056967,62053.0,62052.0,0.193386]
[1727811751680,0.59041047,62053.0,62046.0,0.386805]
[1727811751923,0.17296194,62053.0,62052.0,0.193386]
[1727811752155,0.04176493,62053.0,62052.0,0.193386]
[1727811752614,0.03126079,62053.0,62052.0,0.193386]
[1727811753140,0.02926079,62053.0,62052.0,0.193386]
[1727811753386,0.02926079,62053.0,62030.0,0.24056967]
[1727811753387,0.0962,62052.0,62030.0,0.24056967]
[1727811753608,0.2526578,62052.0,62041.0,0.24056967]
[1727811753832,0.2526578,62052.0,62040.0,0.386843]
[1727811753833,0.193405,62046.0,62040.0,0.386843]
[1727811754059,0.386797,62048.0,62041.0,0.38684]
[1727811754304,0.1564578,62048.0,62044.0,0.193409]
[1727811754522,0.193405,62046.0,62042.0,0.193416]
[1727811754743,0.193405,62046.0,62035.0,0.386877]
[1727811754744,0.1564578,62045.0,62035.0,0.386877]
[1727811754964,0.16596756,62045.0,62035.0,0.386877]
[1727811755185,0.193418,62042.0,62037.0,0.193431]
[1727811755420,0.1564578,62041.0,62037.0,0.193432]
[1727811755859,0.288525,62040.0,62036.0,0.193435]
[1727811756082,0.1564578,62039.0,62034.0,0.386884]
[1727811756312,0.1564578,62039.0,62035.0,0.193438]
[1727811756550,0.1564578,62039.0,62038.0,0.193429]
[1727811756823,0.1817209,62039.0,62038.0,0.193429]
[1727811757271,0.1817209,62039.0,62037.0,0.386864]
[1727811757272,0.1817209,62039.0,62037.0,0.193432]
[1727811757487,0.1817209,62039.0,62024.0,0.0764]
[1727811757715,0.1817209,62039.0,62030.0,0.386908]
[1727811757933,0.1817209,62039.0,62024.0,0.0764]
[1727811757934,0.1817209,62039.0,62037.0,0.193431]
[1727811758173,0.00948367,62038.0,62032.0,0.193446]
[1727811758370,0.1564578,62037.0,62033.0,0.193442]
[1727811758590,0.1564578,62037.0,62031.0,0.193449]
[1727811758811,0.00957974,62036.0,62030.0,0.386908]
[1727811759039,0.00957974,62036.0,62031.0,0.386899]
[1727811759040,0.01667042,62036.0,62031.0,0.386899]
[1727811759488,0.01667042,62036.0,62033.0,0.193444]
[1727811759919,0.1564578,62035.0,62030.0,0.193453]
[1727811760143,0.3498978,62035.0,62030.0,0.193452]
[1727811760362,0.19345,62032.0,62027.0,0.193463]
[1727811760610,0.00708397,62034.0,62026.0,0.38693]
[1727811760611,0.1564578,62031.0,62029.0,0.193457]
[1727811760845,0.1564578,62031.0,62027.0,0.193462]
[1727811760846,0.16355549,62031.0,62027.0,0.193462]
[1727811761060,0.16355549,62031.0,62030.0,0.193454]
[1727811761281,0.16355549,62031.0,62026.0,0.38693]
[1727811761498,0.16355549,62031.0,62023.0,0.000822]
[1727811761499,0.16355549,62031.0,62029.0,0.193455]
[1727811761717,0.00944975,62030.0,62029.0,0.198455]
[1727811762404,0.00944975,62030.0,62029.0,0.193455]
[1727811762853,0.1564578,62031.0,62027.0,0.386925]
[1727811763072,0.1564578,62031.0,62029.0,0.007]
[1727811763346,0.1564578,62031.0,62029.0,0.200457]
[1727811763566,0.1564578,62031.0,62029.0,0.007]
[1727811763992,0.18172415,62031.0,62029.0,0.007]
[1727811764211,0.18172415,62031.0,62029.0,0.006]
[1727811764646,0.18172415,62031.0,62027.0,0.193462]
[1727811764870,0.18172415,62031.0,62029.0,0.005]
[1727811765111,0.193454,62030.0,62029.0,0.011]
[1727811765349,0.45047724,62030.0,62029.0,0.011]
[1727811765583,0.45047724,62030.0,62029.0,0.006]
[1727811765806,0.53157724,62030.0,62029.0,0.006]
[1727811766263,0.57958183,62030.0,62029.0,0.006]
[1727811766488,0.68802402,62030.0,62029.0,0.006]
[1727811766953,0.57958183,62030.0,62029.0,0.006]
[1727811767231,0.57958183,62030.0,62023.0,0.194297]
[1727811767232,0.386918,62029.0,62023.0,0.194297]
[1727811767454,0.193473,62024.0,62023.0,0.000822]
[1727811767670,0.3499308,62024.0,62023.0,0.000822]
[1727811767885,0.2793689,62024.0,62023.0,0.000822]
[1727811768108,0.1660438,62024.0,62023.0,0.194298]
[1727811768324,0.1660438,62024.0,62023.0,0.196298]
[1727811768564,0.1660438,62024.0,62023.0,0.199298]
[1727811768791,0.1660438,62024.0,62023.0,0.196298]
[1727811769001,0.1660438,62024.0,62023.0,0.194298]
[1727811769218,0.1660438,62024.0,62023.0,0.202298]
[1727811769690,0.009586,62024.0,62023.0,0.202298]
[1727811769913,0.0911,62030.0,62029.0,0.193457]
[1727811770135,0.2475578,62030.0,62029.0,0.193457]
[1727811770359,0.00940177,62030.0,62029.0,0.193457]
[1727811770802,0.04800459,62036.0,62035.0,0.193439]
[1727811771066,0.20446239,62036.0,62035.0,0.193439]
[1727811771309,0.00940241,62036.0,62035.0,0.193439]
[1727811771538,0.00940241,62036.0,62035.0,0.527447]
[1727811771991,0.04800459,62041.0,62040.0,0.193423]
[1727811772216,0.04800459,62042.0,62041.0,0.19342]
[1727811772467,0.24056967,62052.0,62051.0,0.193389]
[1727811772693,0.24056967,62052.0,62036.0,0.720879]
[1727811772694,0.62737591,62052.0,62048.0,0.386794]
[1727811772921,0.50688554,62051.0,62050.0,0.193392]
[1727811773402,0.38680624,62051.0,62050.0,0.193392]
[1727811773650,0.39624123,62051.0,62040.0,0.0776]
[1727811773874,0.04804189,62044.0,62040.0,0.31816967]
[1727811774100,0.04804189,62048.0,62040.0,0.0776]
[1727811774321,0.04804189,62048.0,62046.0,0.193404]
[1727811774541,0.24056967,62049.0,62043.0,0.386826]
[1727811774542,0.31263251,62049.0,62047.0,0.193401]
[1727811774759,0.07206284,62048.0,62047.0,0.193401]
[1727811775657,0.07206284,62049.0,62048.0,0.193398]
[1727811775877,0.12010468,62050.0,62046.0,0.386806]
[1727811776045,0.35085286,62050.0,62048.0,0.193397]
[1727811776282,0.07207438,62049.0,62047.0,0.386802]
[1727811776468,0.07207438,62049.0,62048.0,0.193398]
[1727811776672,0.18171761,62051.0,62046.0,0.193404]
[1727811776673,0.66373369,62051.0,62046.0,0.193404]
[1727811776873,0.42316402,62051.0,62047.0,0.193401]
[1727811777077,0.37510861,62051.0,62047.0,0.193401]
[1727811777452,0.386791,62049.0,62041.0,0.386837]
[1727811777667,0.193397,62049.0,62042.0,0.386831]
[1727811777884,0.18171761,62051.0,62043.0,0.386825]
[1727811777885,0.37510861,62051.0,62043.0,0.386825]
[1727811778104,0.18171761,62051.0,62049.0,0.193395]
[1727811778322,0.18171761,62051.0,62047.0,0.1934]
[1727811778511,0.18171761,62051.0,62048.0,0.193396]
[1727811778792,0.1564578,62051.0,62048.0,0.193396]
[1727811779660,0.1564578,62051.0,62038.0,0.24056967]
[1727811779914,0.001644,62053.0,62052.0,0.193386]
[1727811779915,0.04969606,62053.0,62052.0,0.193386]
[1727811780121,0.24221367,62053.0,62052.0,0.193386]
[1727811780389,0.001644,62053.0,62052.0,0.193386]
[1727811781481,0.01108731,62053.0,62052.0,0.200386]
[1727811781720,0.3514848,62053.0,62052.0,0.007]
[1727811781939,0.37674189,62053.0,62052.0,0.007]
[1727811782163,0.38654679,62053.0,62052.0,0.007]
[1727811782384,0.19316379,62053.0,62052.0,0.007]
[1727811782636,0.19316379,62053.0,62052.0,0.006]
[1727811782855,0.38654679,62053.0,62052.0,0.006]
[1727811783075,0.38654679,62053.0,62050.0,0.193391]
[1727811783301,0.19316379,62053.0,62052.0,0.005]
[1727811783540,0.48801832,62053.0,62052.0,0.005]
[1727811783745,0.85911006,62053.0,62052.0,0.005]
[1727811783983,0.81105479,62053.0,62052.0,0.005]
[1727811784422,0.33172862,62053.0,62052.0,0.005]
[1727811784864,0.33165687,62053.0,62049.0,0.193393]
[1727811785086,0.1564578,62052.0,62048.0,0.193397]
[1727811785303,0.193396,62049.0,62044.0,0.19341]
[1727811785517,0.193396,62049.0,62038.0,0.62742267]
[1727811785518,0.1564578,62049.0,62038.0,0.62742267]
[1727811785758,0.193413,62044.0,62038.0,0.193428]
[1727811785983,0.193414,62043.0,62039.0,0.193425]
[1727811786206,0.193414,62043.0,62042.0,0.193417]
[1727811786207,0.00976181,62043.0,62042.0,0.193417]
[1727811786493,0.00976181,62043.0,62032.0,0.0802]
[1727811786494,0.00976181,62043.0,62035.0,0.386877]
[1727811786721,0.20317581,62043.0,62039.0,0.193425]
[1727811786943,0.00976181,62043.0,62032.0,0.0802]
[1727811787169,0.00976181,62043.0,62042.0,0.193417]
[1727811787387,0.00976181,62043.0,62042.0,0.197417]
[1727811787601,0.24056967,62045.0,62042.0,0.390834]
[1727811787843,0.39702747,62045.0,62043.0,0.193413]
[1727811788065,0.39702747,62045.0,62044.0,0.193411]
[1727811788066,0.1564578,62045.0,62044.0,0.193411]
[1727811788281,0.1564578,62045.0,62042.0,0.004]
[1727811788502,0.1564578,62045.0,62040.0,0.386844]
[1727811788503,0.1564578,62045.0,62044.0,0.193411]
[1727811789148,0.16618234,62045.0,62043.0,0.193412]
[1727811789376,0.386823,62044.0,62035.0,0.386874]
[1727811789625,4.248e-05,62044.0,62032.0,0.0802]
[1727811789837,0.3498738,62043.0,62039.0,0.197426]
[1727811790059,0.1564578,62043.0,62039.0,0.004]
[1727811790297,0.1564578,62043.0,62032.0,0.0802]
[1727811790298,0.193421,62041.0,62036.0,0.193434]
[1727811790482,0.193421,62041.0,62037.0,0.193431]
[1727811790483,0.0997,62041.0,62037.0,0.193431]
[1727811790728,0.00972607,62040.0,62034.0,0.38688]
[1727811790948,0.00972607,62040.0,62025.0,0.464135]
[1727811790949,0.193448,62032.0,62026.0,0.193464]
[1727811791179,0.386891,62033.0,62023.0,0.000822]
[1727811791400,0.20310076,62031.0,62026.0,0.193464]
[1727811791621,0.1564578,62032.0,62025.0,0.386938]
[1727811791622,0.1564578,62032.0,62029.0,0.193456]
[1727811791862,0.1564578,62032.0,62025.0,0.386937]
[1727811791863,0.00964876,62030.0,62025.0,0.386937]
[1727811792075,0.24056967,62034.0,62025.0,0.193468]
[1727811792076,0.193458,62029.0,62025.0,0.193468]
[1727811792297,0.3499118,62031.0,62026.0,0.193467]
[1727811792509,0.1564578,62031.0,62028.0,0.193459]
[1727811792721,0.1564578,62031.0,62027.0,0.386928]
[1727811792907,0.1564578,62031.0,62029.0,0.193456]
[1727811793383,0.1564578,62031.0,62030.0,0.193454]
[1727811793634,0.1564578,62031.0,62029.0,0.193457]
[1727811793869,0.002,62046.0,62028.0,0.386921]
[1727811793870,0.0997,62041.0,62028.0,0.004]
[1727811794141,0.02526591,62031.0,62030.0,0.193454]
[1727811794355,0.24056967,62047.0,62030.0,0.08112389]
[1727811794599,0.02526397,62031.0,62030.0,0.08112389]
[1727811794824,0.24056967,62040.0,62030.0,0.0779]
[1727811795046,0.24056967,62038.0,62037.0,0.193432]
[1727811795508,0.02526342,62038.0,62037.0,0.193432]
[1727811796640,0.02526342,62038.0,62037.0,0.208432]
[1727811796876,0.02526342,62038.0,62037.0,0.200432]
[1727811797311,0.02526342,62038.0,62037.0,0.207432]
[1727811797760,0.02526342,62038.0,62037.0,0.200432]
[1727811798264,0.02526342,62038.0,62037.0,0.206432]
[1727811800328,0.02526342,62038.0,62037.0,0.013]
[1727811800549,0.12336342,62038.0,62037.0,0.013]
[1727811800768,0.10767803,62038.0,62037.0,0.013]
[1727811800956,0.30119203,62038.0,62037.0,0.013]
[1727811801168,0.10776303,62038.0,62037.0,0.013]
[1727811801378,0.10767803,62038.0,62037.0,0.013]
[1727811802041,0.45756483,62038.0,62037.0,0.013]
[1727811802258,0.79157283,62038.0,62037.0,0.013]
[1727811802946,0.79157283,62038.0,62037.0,0.006]
[1727811803209,0.45756483,62038.0,62037.0,0.006]
[1727811803444,0.45756483,62038.0,62037.0,0.011]
[1727811803666,0.45756483,62038.0,62037.0,0.006]
[1727811803890,0.45756483,62038.0,62026.0,0.386929]
[1727811803891,0.193442,62034.0,62026.0,0.386929]
[1727811804137,0.1564578,62033.0,62029.0,0.193457]
[1727811804367,0.193455,62030.0,62025.0,0.193467]
[1727811804601,0.55292718,62033.0,62024.0,0.00082]
[1727811804602,0.16603518,62033.0,62024.0,0.00082]
[1727811804841,0.1564578,62033.0,62029.0,0.193456]
[1727811805074,0.00957738,62032.0,62029.0,0.193456]
[1727811805310,0.193462,62028.0,62024.0,0.194292]
[1727811805596,0.1564578,62028.0,62024.0,0.00082]
[1727811805831,0.09869279,62032.0,62025.0,0.005]
[1727811805832,0.193467,62026.0,62025.0,0.005]
[1727811806071,0.4430248,62026.0,62025.0,0.005]
[1727811806303,0.25754536,62026.0,62025.0,0.005]
[1727811806795,0.47628126,62026.0,62024.0,0.00782]
[1727811807050,0.1564578,62025.0,62024.0,0.00082]
[1727811807290,0.16438236,62025.0,62024.0,0.00682]
[1727811807755,0.16438236,62025.0,62024.0,0.00082]
[1727811807990,0.16438236,62025.0,62024.0,0.00382]
[1727811808465,0.16438236,62025.0,62024.0,0.00082]
[1727811808698,0.16438236,62025.0,62024.0,0.194293]
[1727811808936,0.16438236,62025.0,62024.0,0.197293]
[1727811809162,0.16438236,62025.0,62024.0,0.00382]
[1727811809456,0.16438236,62025.0,62024.0,0.00882]
[1727811809714,0.16438236,62025.0,62024.0,0.00382]
[1727811809932,0.16438236,62025.0,62024.0,0.00182]
[1727811810178,0.04815477,62035.0,62024.0,0.00182]
[1727811810432,0.1564578,62032.0,62031.0,0.580351]
[1727811810663,0.31280183,62037.0,62035.0,0.193439]
[1727811810664,0.28872444,62037.0,62035.0,0.193439]
[1727811811133,0.31280183,62037.0,62026.0,0.0791]
[1727811811135,0.31280183,62037.0,62024.0,0.22408714]
[1727811811136,0.193441,62035.0,62030.0,0.193452]
[1727811811375,0.22326714,62031.0,62024.0,0.00082]
[1727811811610,0.04814276,62033.0,62024.0,0.00082]
[1727811811611,0.193459,62029.0,62025.0,0.19347]
[1727811811854,0.1564578,62028.0,62025.0,0.19347]
[1727811812303,0.1564578,62028.0,62025.0,0.193468]
[1727811812538,0.1564578,62028.0,62025.0,0.193469]
[1727811812790,0.1564578,62028.0,62025.0,0.196469]
[1727811813057,0.1564578,62028.0,62026.0,0.386932]
[1727811813516,0.1564578,62028.0,62027.0,0.193464]
[1727811814399,0.18172517,62028.0,62027.0,0.193464]
[1727811815301,0.18172517,62028.0,62027.0,0.196464]
[1727811815302,0.02526737,62028.0,62027.0,0.196464]
[1727811815528,0.24158652,62042.0,62037.0,0.193432]
[1727811815756,0.00164,62038.0,62037.0,0.193432]
[1727811817575,0.00164,62038.0,62037.0,0.194432]
[1727811818019,0.02690231,62038.0,62037.0,0.193432]
[1727811818273,0.00164,62038.0,62037.0,0.199432]
[1727811818585,0.02690232,62038.0,62037.0,0.206432]
[1727811818761,0.00164,62038.0,62037.0,0.193432]
[1727811818979,0.00164,62038.0,62037.0,0.202432]
[1727811819209,0.04980852,62038.0,62037.0,0.009]
[1727811819426,0.00164,62038.0,62037.0,0.009]
[1727811819878,0.00164,62038.0,62035.0,0.193436]
[1727811820132,0.00164,62038.0,62037.0,0.016]
[1727811820360,0.00164,62038.0,62037.0,0.008]
[1727811820576,0.07389278,62038.0,62028.0,0.386918]
[1727811820793,0.07389278,62038.0,62029.0,0.386913]
[1727811820794,0.04821682,62036.0,62029.0,0.386913]
[1727811821008,0.04821682,62036.0,62023.0,0.387774]
[1727811821009,0.14561682,62035.0,62023.0,0.387774]
[1727811821244,0.14561682,62035.0,62031.0,0.19345]
[1727811821469,0.14561682,62035.0,62027.0,0.193461]
[1727811821470,0.193449,62032.0,62027.0,0.193461]
[1727811821685,0.1564578,62032.0,62026.0,0.386934]
[1727811821912,0.1564578,62032.0,62024.0,0.194292]
[1727811821913,0.193459,62029.0,62024.0,0.194292]
[1727811822138,0.1564578,62028.0,62025.0,0.193469]
[1727811822364,0.1564578,62028.0,62024.0,0.00082]
[1727811822863,0.193466,62027.0,62024.0,0.00082]
[1727811823084,0.193466,62027.0,62026.0,0.007]
[1727811823300,0.386915,62029.0,62024.0,0.00082]
[1727811823301,0.19347,62026.0,62024.0,0.00082]
[1727811823520,0.19347,62026.0,62024.0,0.00582]
[1727811823734,0.19347,62026.0,62024.0,0.00082]
[1727811824425,0.07348441,62027.0,62024.0,0.00082]
[1727811824882,0.24168384,62026.0,62024.0,0.00482]